[Event "GER-ch Rapid Women 2017"]
[Site "Erfurt"]
[Date "2017.07.30"]
[Round "9"]
[White "Bachmann, Sylvia"]
[Black "Perez Celis, Alba"]
[Result "0-1"]
[ECO "B01"]
[WhiteElo "1677"]
[BlackElo "1790"]
[Annotator "NA"]
[PlyCount "86"]
[EventDate "2017.??.??"]
[EventType "swiss"]
[EventCountry "GER"]
[SourceTitle "playchess.com"]
[Source "ChessBase"]
[SourceQuality "1"]
[TimeControl "1200"]

1. e4 {[%emt 0:00:02]} d5 {[%emt 0:00:04]} 2. exd5 {[%emt 0:00:03]} Qxd5 {[%emt 0:00:03]} 3. Nc3 {[%emt 0:00:01]} Qa5 {[%emt 0:00:03]} 4. d4 {[%emt 0:00:02]} Bf5 {[%emt 0:00:05]} 5. Bd2 {[%emt 0:00:08]} c6 {[%emt 0:00:09]} 6. Nf3 {[%emt 0:00:12]} e6 {[%emt 0:00:19]} 7. Be2 {[%emt 0:00:02]} Nf6 {[%emt 0:00:10]} 8. O-O {[%emt 0:00:02]} Nbd7 {[%emt 0:00:46]} 9. Re1 {[%emt 0:00:08]} Be7 {[%emt 0:00:11]} 10. Bc4 {[%emt 0:01:42]} O-O {[%emt 0:00:33]} 11. Nh4 {[%emt 0:00:19]} Bg4 {[%emt 0:00:26]} 12. f3 {[%emt 0:00:26]} Bh5 {[%emt 0:00:11]} 13. g3 {[%emt 0:00:57]} Qb6 {[%emt 0:02:13]} 14. Be3 {[%emt 0:02:58]} Nd5 {[%emt 0:00:12]} 15. Na4 {[%emt 0:00:35]} Qd8 {[%emt 0:00:59]} 16. Bxd5 {[%emt 0:00:17]} exd5 {[%emt 0:00:46]} 17. Ng2 {[%emt 0:00:10]} f5 {[%emt 0:01:17]} 18. Nf4 {[%emt 0:00:22]} Bf7 {[%emt 0:00:09]} 19. Qd3 {[%emt 0:01:33]} Bd6 {[%emt 0:01:44]} 20. Nc5 {[%emt 0:01:04]} Bxc5 {[%emt 0:01:14]} 21. dxc5 {[%emt 0:00:08]} Ne5 {[%emt 0:00:23]} 22. Qf1 {[%emt 0:00:16]} d4 {[%emt 0:00:28]} 23. Bf2 {[%emt 0:00:21]} Nxf3+ {[%emt 0:00:10]} 24. Kg2 {[%emt 0:00:00]} Nxe1+ {[%emt 0:01:14]} 25. Rxe1 {[%emt 0:00:02]} Bd5+ {[%emt 0:00:47]} 26. Kg1 {[%emt 0:00:02]} Qf6 {[%emt 0:01:45]} 27. Qd3 {[%emt 0:00:11]} Rae8 {[%emt 0:00:04]} 28. Rd1 {[%emt 0:00:39]} Re4 {[%emt 0:00:02]} 29. c3 {[%emt 0:01:40]} dxc3 {[%emt 0:00:14]} 30. bxc3 {[%emt 0:00:06]} Qe7 {[%emt 0:00:02]} 31. Nxd5 {[%emt 0:00:13]} cxd5 {[%emt 0:00:04]} 32. Qxd5+ {[%emt 0:00:16]} Kh8 {[%emt 0:00:02]} 33. Qd6 {[%emt 0:00:22]} Qf7 {[%emt 0:00:25]} 34. Bd4 {[%emt 0:00:13]} f4 {[%emt 0:00:10]} 35. Rf1 {[%emt 0:00:17]} f3 {[%emt 0:00:09]} 36. Bf2 {[%emt 0:01:05]} Rfe8 {[%emt 0:00:01]} 37. Qd2 {[%emt 0:00:21]} Re2 {[%emt 0:00:02]} 38. Qd4 {[%emt 0:00:24]} Rxa2 {[%emt 0:00:02]} 39. Qg4 {[%emt 0:00:41]} Rae2 {[%emt 0:00:04]} 40. Rd1 {[%emt 0:00:15]} Rc2 {[%emt 0:00:17]} 41. Bd4 {[%emt 0:00:16]} f2+ {[%emt 0:00:06]} 42. Kf1 {[%emt 0:00:05]} Qc4+ {[%emt 0:00:05]} 43. Kg2 f1=Q# {[%emt 0:00:04]} 0-1

[Event "GER-ch Rapid Women 2017"]
[Site "Erfurt"]
[Date "2017.07.30"]
[Round "9"]
[White "Yueksel, Anja"]
[Black "Zimmer, Elke"]
[Result "1/2-1/2"]
[ECO "C54"]
[WhiteElo "1472"]
[BlackElo "1950"]
[Annotator "NA"]
[PlyCount "130"]
[EventDate "2017.??.??"]
[EventType "swiss"]
[EventCountry "GER"]
[SourceTitle "playchess.com"]
[Source "ChessBase"]
[SourceQuality "1"]
[TimeControl "1200"]

1. e4 {[%emt 0:00:01]} e5 {[%emt 0:00:01]} 2. Nf3 Nc6 3. Bc4 {[%emt 0:00:03]} Bc5 {[%emt 0:00:06]} 4. c3 {[%emt 0:00:01]} Nf6 {[%emt 0:00:07]} 5. d4 {[%emt 0:00:02]} exd4 {[%emt 0:00:02]} 6. cxd4 {[%emt 0:00:02]} Bb4+ {[%emt 0:00:02]} 7. Nc3 {[%emt 0:00:01]} O-O {[%emt 0:00:25]} 8. Bg5 {[%emt 0:01:18]} d6 {[%emt 0:00:26]} 9. O-O {[%emt 0:00:05]} h6 {[%emt 0:00:08]} 10. Bh4 {[%emt 0:00:01]} g5 {[%emt 0:00:01]} 11. Bg3 {[%emt 0:00:04]} Bxc3 {[%emt 0:00:02]} 12. bxc3 {[%emt 0:00:01]} Nxe4 {[%emt 0:00:00]} 13. Qb3 {[%emt 0:00:23]} Na5 {[%emt 0:00:13]} 14. Qb4 {[%emt 0:00:40]} Nxc4 {[%emt 0:00:05]} 15. Qxc4 {[%emt 0:00:09]} Be6 16. Qd3 f5 {[%emt 0:00:21]} 17. h3 {[%emt 0:00:38]} Qf6 18. Rfc1 h5 {[%emt 0:01:47]} 19. c4 {[%emt 0:02:06]} Nxg3 {[%emt 0:00:03]} 20. fxg3 {[%emt 0:00:07]} g4 {[%emt 0:00:06]} 21. d5 {[%emt 0:00:47]} gxf3 22. dxe6 Rae8 {[%emt 0:01:07]} 23. Qxf3 {[%emt 0:01:06]} Rxe6 24. Qxh5 Qd4+ {[%emt 0:00:29]} 25. Kh2 {[%emt 0:00:39]} Rf7 26. Qg5+ Qg7 27. Qxg7+ Kxg7 {[%emt 0:00:28]} 28. Rf1 {[%emt 0:03:37]} Re4 29. Rf4 b6 {[%emt 0:00:29]} 30. Raf1 a5 31. a4 Re5 32. g4 {[%emt 0:02:01]} Kg6 {[%emt 0:00:06]} 33. gxf5+ Rexf5 34. Rg4+ Kh6 35. Rxf5 Rxf5 36. Re4 Rc5 37. g4 d5 38. Re6+ Kg5 39. Re5+ Kf4 40. Rxd5 Rxc4 41. Rf5+ Ke4 42. h4 Rxa4 43. h5 Ra2+ 44. Kh3 Ra1 45. Kh4 a4 {[%emt 0:00:54]} 46. h6 a3 47. Kg5 Rd1 48. h7 Rh1 49. Rf4+ Ke5 50. Ra4 Rxh7 51. Rxa3 Rg7+ 52. Kh4 b5 53. Ra5 c6 54. g5 Kf4 55. Kh5 Rxg5+ 56. Kh6 Rd5 57. Ra1 Ke5 58. Re1+ Kd6 59. Kg6 c5 60. Kf6 c4 61. Re6+ Kc5 62. Re8 Rd3 63. Rc8+ Kb4 64. Ke5 c3 65. Ke4 Rd2 1/2-1/2